bitfinex/quotes_BTCUSD_20250219
["timestamp","ask_amount","ask_price","bid_price","bid_amount"]
[1739962953258,0.63499526,96509.0,96508.0,0.013851]
[1739962953465,0.61875273,96509.0,96508.0,0.010851]
[1739962955345,0.62375273,96509.0,96508.0,0.010851]
[1739962955884,0.61875273,96509.0,96508.0,0.010851]
[1739962956097,0.62375273,96509.0,96508.0,0.010851]
[1739962956506,0.6399964,96509.0,96508.0,0.010851]
[1739962958418,0.6399964,96509.0,96508.0,0.003371]
[1739962958565,0.6399964,96509.0,96508.0,0.010851]
[1739962958776,0.6349964,96509.0,96508.0,0.010851]
[1739962958984,0.6399964,96509.0,96508.0,0.010851]
[1739962960907,0.7899964,96509.0,96508.0,0.010851]
[1739962963465,0.77375273,96509.0,96508.0,0.010851]
[1739962966546,0.78999663,96509.0,96508.0,0.010851]
[1739962967202,0.72679663,96509.0,96508.0,0.010851]
[1739962967602,0.73179663,96509.0,96508.0,0.010851]
[1739962968425,0.69429663,96509.0,96508.0,0.010851]
[1739962968741,0.59179298,96509.0,96508.0,0.010851]
[1739962973384,0.57054908,96509.0,96508.0,0.010851]
[1739962973624,2.42878855,96509.0,96508.0,0.003371]
[1739962973867,2.71723655,96509.0,96508.0,0.003371]
[1739962974057,2.69087355,96509.0,96508.0,0.003371]
[1739962974288,2.69087355,96509.0,96508.0,0.010851]
[1739962974488,2.68587355,96509.0,96508.0,0.010851]
[1739962974604,2.69087355,96509.0,96508.0,0.010851]
[1739962974810,1.96225555,96509.0,96508.0,0.010851]
[1739962975010,1.96225555,96509.0,96508.0,0.003371]
[1739962975259,1.95725555,96509.0,96508.0,0.010851]
[1739962976590,1.95725555,96509.0,96489.0,0.0008506]
[1739962976591,0.15,96508.0,96489.0,0.0008506]
[1739962976734,0.15,96508.0,96453.0,0.0792]
[1739962976735,0.0145384,96473.0,96453.0,0.0792]
[1739962976939,0.0145384,96473.0,96472.0,0.00748]
[1739962977518,0.0145384,96473.0,96472.0,0.06445347]
[1739962977519,0.02522182,96473.0,96472.0,0.06445347]
[1739962977690,0.0145384,96473.0,96472.0,0.06445347]
[1739962980372,0.0145384,96473.0,96472.0,0.05697347]
[1739962980550,0.0145384,96473.0,96472.0,0.06445347]
[1739962981381,0.0145384,96473.0,96472.0,0.01455347]
[1739962982491,0.01079903,96477.0,96472.0,0.01455347]
[1739962982834,0.15,96481.0,96472.0,0.00748]
[1739962983387,0.1240917,96482.0,96472.0,0.00748]
[1739962983623,0.22659535,96482.0,96472.0,0.00748]
[1739962984234,0.001,96477.0,96472.0,0.00748]
[1739962984488,0.01195908,96477.0,96472.0,0.00748]
[1739962984617,0.01095908,96477.0,96472.0,0.00748]
[1739962984817,0.1240917,96482.0,96472.0,0.00748]
[1739962985068,0.07211358,96482.0,96472.0,0.00748]
[1739962985574,0.07211358,96482.0,96473.0,0.0814]
[1739962985804,0.07211358,96482.0,96474.0,0.0489]
[1739962986001,0.07211358,96482.0,96474.0,0.05597244]
[1739962986162,0.08281417,96482.0,96474.0,0.05597244]
[1739962986603,0.08381417,96482.0,96474.0,0.05597244]
[1739962986823,0.08281417,96482.0,96474.0,0.05597244]
[1739962987165,0.08081417,96482.0,96474.0,0.05597244]
[1739962987361,0.001,96477.0,96474.0,0.05597244]
[1739962987562,0.001,96477.0,96475.0,0.00748]
[1739962987677,0.08081417,96482.0,96475.0,0.00748]
[1739962987878,0.08081417,96482.0,96476.0,0.00707141]
[1739962988212,0.01470059,96482.0,96476.0,0.00707141]
[1739962988415,0.01170059,96482.0,96476.0,0.00707141]
[1739962988592,0.01070059,96482.0,96476.0,0.00707141]
[1739962988798,0.06911358,96486.0,96476.0,0.00707141]
[1739962989409,0.003,96482.0,96476.0,0.00707141]
[1739962990834,0.001,96486.0,96476.0,0.00707141]
[1739962991035,0.01606172,96486.0,96476.0,0.00707141]
[1739962991210,0.005,96486.0,96476.0,0.00707141]
[1739962991567,0.001,96486.0,96477.0,0.0762]
[1739962991927,0.003,96482.0,96478.0,0.00707037]
[1739962992123,0.004,96482.0,96478.0,0.00707037]
[1739962992371,0.004,96482.0,96479.0,0.0758]
[1739962992548,0.001,96482.0,96479.0,0.0758]
[1739962992760,0.001,96482.0,96480.0,0.00706934]
[1739962992995,0.004,96486.0,96481.0,0.0494]
[1739962993305,0.004,96486.0,96482.0,0.0070683]
[1739962994143,0.0004256,96489.0,96482.0,0.0070683]
[1739962995978,0.0014256,96489.0,96483.0,0.0764]
[1739962996216,0.0162455,96488.0,96483.0,0.0764]
[1739962996383,0.0162455,96488.0,96484.0,0.00706727]
[1739962996836,0.0162455,96488.0,96485.0,0.0764]
[1739962997040,0.0162455,96488.0,96485.0,0.08346675]
[1739962998572,0.0172455,96488.0,96485.0,0.08346675]
[1739963000271,0.0162455,96488.0,96485.0,0.08346675]
[1739963000468,0.0172455,96488.0,96485.0,0.08346675]
[1739963001109,0.0172455,96488.0,96485.0,0.1859704]
[1739963001297,0.0172455,96488.0,96486.0,0.0815]
[1739963001556,0.0172455,96488.0,96486.0,0.08856624]
[1739963001764,0.0162455,96488.0,96486.0,0.08856624]
[1739963002874,0.0162455,96488.0,96486.0,0.08725779]
[1739963003309,0.0004256,96489.0,96486.0,0.08725779]
[1739963010827,0.33399331,96509.0,96486.0,0.08725779]
[1739963011011,0.01624554,96494.0,96486.0,0.08725779]
[1739963011362,0.01624554,96494.0,96487.0,0.00748]
[1739963011837,0.01624554,96494.0,96488.0,0.00671834]
[1739963012881,0.01624554,96494.0,96487.0,0.00242224]
[1739963013020,0.01624554,96494.0,96489.0,0.0063819]
[1739963013223,0.01624554,96494.0,96487.0,0.00242224]
[1739963013425,0.01068491,96507.0,96488.0,0.00638242]
[1739963013632,0.33399331,96509.0,96488.0,0.00638242]
[1739963014994,0.34502501,96509.0,96488.0,0.00638242]
[1739963015199,0.35002501,96509.0,96488.0,0.00638242]
[1739963015984,0.35302501,96509.0,96488.0,0.00638242]
[1739963016344,0.01624504,96504.0,96488.0,0.00638242]
[1739963017798,0.01724504,96504.0,96488.0,0.00638242]
[1739963018390,0.02024504,96504.0,96488.0,0.00638242]
[1739963019118,0.01924504,96504.0,96488.0,0.00638242]
[1739963019552,0.02024504,96504.0,96488.0,0.00638242]
[1739963019985,0.01724504,96504.0,96488.0,0.00638242]
[1739963020448,0.02024504,96504.0,96488.0,0.00638242]
[1739963022255,0.01924504,96504.0,96488.0,0.00638242]
[1739963022492,0.02024504,96504.0,96488.0,0.00638242]
[1739963023307,0.01724504,96504.0,96488.0,0.00638242]
[1739963023480,0.004,96504.0,96488.0,0.00638242]
[1739963026209,0.06911358,96500.0,96488.0,0.00638242]
[1739963026867,0.06911358,96500.0,96489.0,0.00748]
[1739963027209,0.06911358,96500.0,96490.0,0.00605183]
[1739963027429,0.07111358,96500.0,96490.0,0.00605183]
[1739963027845,0.06911358,96500.0,96490.0,0.00605183]
[1739963028055,0.01624564,96498.0,96490.0,0.00605183]
[1739963029097,0.01624564,96498.0,96491.0,0.00748]
[1739963029515,0.01624564,96498.0,96492.0,0.0060508]
[1739963030041,0.01624564,96498.0,96493.0,0.00748]
[1739963031219,0.02024564,96498.0,96493.0,0.00748]
[1739963031427,0.01824564,96498.0,96493.0,0.00748]
[1739963031802,0.02024564,96498.0,96493.0,0.00748]
[1739963032033,0.01824564,96498.0,96493.0,0.00748]
[1739963032234,0.02324564,96498.0,96493.0,0.00748]
[1739963032460,0.02324564,96498.0,96494.0,0.00748]
[1739963032890,0.02324564,96498.0,96487.0,0.000851]
[1739963033109,0.02324564,96498.0,96495.0,0.00748]
[1739963033517,0.002,96498.0,96495.0,0.00748]
[1739963033729,0.002,96498.0,96496.0,0.00604873]
[1739963033859,0.005,96498.0,96496.0,0.00604873]
[1739963034060,0.007,96498.0,96496.0,0.00604873]
[1739963034258,0.002,96498.0,96496.0,0.00604873]
[1739963034506,0.005,96498.0,96496.0,0.00604873]
[1739963034712,0.007,96498.0,96496.0,0.00604873]
[1739963034915,0.005,96498.0,96496.0,0.00604873]
[1739963035280,0.002,96498.0,96496.0,0.00604873]
[1739963035409,0.007,96498.0,96496.0,0.00604873]
[1739963036207,0.007,96498.0,96497.0,0.00748]
[1739963036498,0.25950365,96498.0,96497.0,0.01352822]
[1739963036751,0.27575003,96498.0,96497.0,0.01352822]
[1739963036945,0.15,96497.0,96487.0,0.000851]
[1739963037160,0.32161723,96497.0,96488.0,0.00748]
[1739963037406,0.15,96495.0,96488.0,0.00748]
[1739963037684,0.15,96493.0,96489.0,0.00748]
[1739963037893,0.10250365,96492.0,96489.0,0.00748]
[1739963038135,0.15,96491.0,96490.0,0.00748]
[1739963038345,0.25250365,96491.0,96490.0,0.00748]
[1739963040667,0.30313001,96491.0,96487.0,0.000851]
[1739963040863,0.05462636,96491.0,96490.0,0.00748]
[1739963041014,0.011,96491.0,96487.0,0.000851]
[1739963041221,0.15,96489.0,96488.0,0.00748]
[1739963041577,2.023007,96489.0,96488.0,0.00748]
[1739963041698,2.083907,96489.0,96488.0,0.00748]
[1739963042720,2.083907,96489.0,96487.0,0.000851]
[1739963042721,2.18641065,96489.0,96487.0,0.000851]
[1739963042923,2.88236765,96488.0,96487.0,0.000851]
[1739963043122,2.93986765,96488.0,96487.0,0.008331]
[1739963043533,2.93986765,96488.0,96487.0,0.000851]
[1739963043751,2.93986765,96488.0,96487.0,0.00530875]
[1739963043947,0.02,96485.0,96481.0,0.0008512]
[1739963044154,0.15,96483.0,96482.0,0.00748]
[1739963044353,3.47162665,96483.0,96482.0,0.00748]
[1739963044576,2.85717165,96483.0,96482.0,0.00748]
[1739963045169,2.77902165,96483.0,96482.0,0.00748]
[1739963046031,2.79527102,96483.0,96482.0,0.00748]
[1739963047078,2.80227102,96483.0,96482.0,0.00748]
[1739963047252,2.85755801,96483.0,96482.0,0.00748]
[1739963047453,2.80660601,96483.0,96482.0,0.00748]
[1739963047869,2.81360601,96483.0,96482.0,0.00748]
[1739963050186,2.73674106,96483.0,96482.0,0.00748]
[1739963050642,2.50175007,96483.0,96482.0,0.00748]
[1739963050773,2.23828307,96483.0,96482.0,0.00748]
[1739963050974,0.28966907,96483.0,96482.0,0.00748]
[1739963051180,0.13175302,96483.0,96482.0,0.00748]
[1739963052833,0.13175302,96483.0,96482.0,0.08858]
[1739963052834,0.02924937,96483.0,96482.0,0.08858]
[1739963053063,0.02924937,96483.0,96482.0,0.13648]
[1739963053225,0.02924937,96483.0,96482.0,0.14253597]
[1739963053417,0.006,96483.0,96482.0,0.14253597]
[1739963053663,0.3242,96488.0,96482.0,0.14253597]
[1739963053866,0.007,96483.0,96482.0,0.14253597]
[1739963054067,0.013,96483.0,96482.0,0.14253597]
[1739963054280,0.15,96487.0,96482.0,0.14253597]
[1739963054418,0.003,96483.0,96482.0,0.14253597]
[1739963054600,0.009,96483.0,96482.0,0.14253597]
[1739963055429,0.006,96483.0,96482.0,0.14253597]
[1739963055631,0.009,96483.0,96482.0,0.14253597]
[1739963056097,0.003,96483.0,96482.0,0.14253597]
[1739963056637,0.01924704,96483.0,96482.0,0.14253597]
[1739963056819,0.01624704,96483.0,96482.0,0.14253597]
[1739963057172,0.01924704,96483.0,96482.0,0.14253597]
[1739963057898,0.02024704,96483.0,96482.0,0.14253597]
[1739963059028,0.02024704,96483.0,96482.0,0.14338697]
[1739963064438,0.004,96483.0,96482.0,0.14338697]
[1739963065599,0.001,96483.0,96482.0,0.14338697]
[1739963066222,0.004,96483.0,96482.0,0.14338697]
[1739963066657,0.001,96483.0,96482.0,0.14338697]
[1739963067052,0.06911358,96500.0,96483.0,0.0805]
[1739963067262,0.06911358,96500.0,96483.0,0.0795]
[1739963067451,0.01624514,96496.0,96484.0,0.00605493]
[1739963068445,0.01624514,96496.0,96485.0,0.00748]
[1739963068763,0.01624514,96496.0,96486.0,0.0060539]
[1739963069898,0.01724514,96496.0,96486.0,0.0060539]
[1739963070405,0.01624514,96496.0,96487.0,0.0761]
[1739963070574,0.01724514,96496.0,96487.0,0.08215338]
[1739963071384,0.01767064,96496.0,96487.0,0.08215338]
[1739963071614,0.01767064,96496.0,96487.0,0.08315338]
[1739963072058,0.01667064,96496.0,96487.0,0.08315338]
[1739963072371,0.01767064,96496.0,96487.0,0.08315338]
[1739963076077,0.01767064,96496.0,96488.0,0.0451]
[1739963076245,0.01767064,96496.0,96489.0,0.0788]
[1739963076558,0.01767064,96496.0,96489.0,0.08485235]
[1739963076791,0.0014255,96496.0,96489.0,0.08485235]
[1739963077045,0.0004255,96496.0,96489.0,0.08485235]
[1739963077267,0.0004255,96496.0,96490.0,0.0451]
[1739963077500,0.0014255,96496.0,96491.0,0.0788]
[1739963077672,0.0014255,96496.0,96491.0,0.08485132]
[1739963078038,0.0004255,96496.0,96491.0,0.08485132]
[1739963079665,0.0014255,96496.0,96491.0,0.08485132]
[1739963079932,0.01624476,96495.0,96491.0,0.08485132]
[1739963087358,0.0004255,96496.0,96491.0,0.08485132]
[1739963089427,0.0014255,96496.0,96491.0,0.08485132]
[1739963089759,0.0004255,96496.0,96491.0,0.08485132]
[1739963090202,0.0014255,96496.0,96491.0,0.08485132]
[1739963090336,0.01624473,96495.0,96491.0,0.08485132]
[1739963097295,0.0004255,96496.0,96491.0,0.08485132]
[1739963100341,0.01624473,96495.0,96491.0,0.08485132]
[1739963105421,0.0004255,96496.0,96491.0,0.08485132]
[1739963106578,0.0004255,96496.0,96491.0,0.09761565]
[1739963106787,0.0004255,96496.0,96491.0,0.08485132]
[1739963107426,0.0004255,96495.0,96491.0,0.08485132]
[1739963108291,0.01667004,96495.0,96493.0,0.0463]
[1739963108485,0.01667004,96495.0,96494.0,0.0824]
[1739963108669,0.01667004,96495.0,96494.0,0.08844977]
[1739963110225,0.01667004,96495.0,96494.0,0.09592977]
[1739963112754,0.01667004,96495.0,96494.0,0.19843342]
[1739963113489,0.0004255,96495.0,96494.0,0.19843342]
[1739963115695,0.0004255,96495.0,96494.0,0.56963342]
[1739963117244,0.0004255,96495.0,96494.0,0.59263342]
[1739963120100,0.0091064,96522.0,96495.0,0.023]
[1739963120299,0.15,96537.0,96500.0,0.06911358]
[1739963120506,0.01624277,96514.0,96502.0,0.0815]
[1739963120708,0.01624277,96514.0,96503.0,0.10250365]
[1739963120997,0.01624277,96514.0,96503.0,0.10854877]
[1739963121599,0.01624277,96514.0,96503.0,0.10867911]
[1739963122144,0.02024277,96514.0,96503.0,0.10867911]
[1739963122920,0.02224277,96514.0,96503.0,0.10867911]
[1739963123466,0.01824277,96514.0,96503.0,0.10867911]
[1739963123678,0.02224277,96514.0,96503.0,0.10867911]
[1739963124464,0.006,96514.0,96503.0,0.10867911]
[1739963126296,0.006,96514.0,96503.0,0.43327911]
[1739963126697,0.01624257,96512.0,96503.0,0.43327911]
[1739963128065,0.01924257,96512.0,96503.0,0.43327911]
[1739963128488,0.02024257,96512.0,96503.0,0.43327911]
[1739963130874,0.019968,96512.0,96503.0,0.43327911]
[1739963131913,0.019968,96512.0,96503.0,0.43618525]
[1739963133460,0.004,96512.0,96503.0,0.43618525]
[1739963135033,0.004,96512.0,96503.0,0.3336816]
[1739963136284,0.01624263,96510.0,96503.0,0.3336816]
[1739963137684,0.01824263,96510.0,96503.0,0.3336816]
[1739963142765,0.01824263,96510.0,96503.0,0.3345324]
[1739963143370,0.002,96510.0,96503.0,0.3345324]
[1739963146067,0.002,96510.0,96504.0,0.00748]
[1739963146201,0.002,96510.0,96505.0,0.00895072]
[1739963146565,0.01624247,96509.0,96505.0,0.00895072]
[1739963147926,0.01824247,96509.0,96505.0,0.00895072]
[1739963153452,0.002,96509.0,96506.0,0.00748]
[1739963153657,0.002,96509.0,96506.0,0.01643017]
[1739963155328,0.0004255,96514.0,96506.0,0.01643017]
[1739963155491,0.002,96509.0,96506.0,0.01643017]
[1739963156305,0.0004255,96514.0,96506.0,0.01643017]
[1739963156468,0.0044255,96514.0,96506.0,0.01643017]
[1739963156890,0.0054255,96514.0,96506.0,0.01643017]
[1739963157174,0.0014255,96514.0,96506.0,0.01643017]
[1739963157946,0.01624233,96513.0,96506.0,0.01643017]
[1739963158466,0.002,96509.0,96506.0,0.01643017]
[1739963158868,0.01624233,96513.0,96506.0,0.01643017]
[1739963159090,0.01924233,96513.0,96506.0,0.01643017]
[1739963159607,0.01624233,96513.0,96506.0,0.01643017]
[1739963159854,0.002,96509.0,96506.0,0.01643017]
[1739963160262,0.01724233,96513.0,96506.0,0.01643017]
[1739963160592,0.02024233,96513.0,96506.0,0.01643017]
[1739963160714,0.01924233,96513.0,96506.0,0.01643017]
[1739963161680,0.02024233,96513.0,96506.0,0.01643017]
[1739963163265,0.004,96513.0,96506.0,0.01643017]
[1739963163671,0.004,96513.0,96507.0,0.0459]
[1739963163876,0.004,96513.0,96507.0,0.05476027]
[1739963164076,0.004,96513.0,96508.0,0.0819]
[1739963164278,0.004,96513.0,96508.0,0.19326338]
[1739963164452,0.003,96513.0,96509.0,0.10250365]
[1739963164673,0.003,96513.0,96509.0,0.11136283]
[1739963164880,0.001,96513.0,96509.0,0.11136283]
[1739963165074,0.004,96513.0,96509.0,0.11136283]
[1739963165719,0.06911358,96530.0,96509.0,0.11136283]
[1739963165898,0.003,96513.0,96509.0,0.11136283]
[1739963166459,0.004,96513.0,96509.0,0.11136283]
[1739963166663,0.06911358,96520.0,96509.0,0.11136283]
[1739963167488,0.001,96513.0,96509.0,0.11136283]
[1739963167924,0.06911358,96520.0,96509.0,0.11136283]
[1739963168134,0.01624221,96513.0,96509.0,0.11136283]
[1739963168725,0.01624221,96513.0,96509.0,0.00885918]
[1739963168880,0.01624221,96513.0,96510.0,0.00748]
[1739963169082,0.01624221,96513.0,96510.0,0.01633864]
[1739963169877,0.01724221,96513.0,96510.0,0.01633864]
[1739963170281,0.01624221,96513.0,96510.0,0.01633864]
[1739963170570,0.01724221,96513.0,96510.0,0.01633864]
[1739963171290,0.02024221,96513.0,96510.0,0.01633864]
[1739963172524,0.004,96513.0,96510.0,0.01633864]
[1739963175682,0.02024282,96513.0,96510.0,0.01633864]
[1739963176489,0.02024282,96513.0,96511.0,0.076]
[1739963176687,0.02024282,96513.0,96511.0,0.08475269]
[1739963176892,0.0004255,96520.0,96513.0,0.47055718]
[1739963177045,0.0004255,96520.0,96514.0,0.00875105]
[1739963177419,0.01624239,96519.0,96514.0,0.00875105]
[1739963178342,0.01624239,96519.0,96514.0,0.00575105]
[1739963178615,0.01624239,96519.0,96514.0,0.00816948]
[1739963179184,0.02124239,96519.0,96514.0,0.00816948]
[1739963179787,0.02424239,96519.0,96514.0,0.00816948]
[1739963181509,0.02466789,96519.0,96514.0,0.00816948]
[1739963183356,0.0084255,96519.0,96514.0,0.00816948]
[1739963188656,0.0084255,96519.0,96516.0,0.0485]
[1739963188783,0.0084255,96519.0,96517.0,0.0794]
[1739963188984,0.0084255,96519.0,96517.0,0.08755339]
[1739963189386,0.0054255,96519.0,96517.0,0.08755339]
[1739963189595,0.0004255,96519.0,96517.0,0.08755339]
[1739963189978,0.0084255,96519.0,96517.0,0.08755339]
[1739963190273,0.0084255,96519.0,96517.0,0.08955339]
[1739963190488,0.0034255,96519.0,96517.0,0.08955339]
[1739963215671,0.0034255,96519.0,96517.0,0.08933616]
[1739963219932,0.0034255,96519.0,96518.0,0.00778456]
[1739963220133,0.0034255,96519.0,96518.0,0.0159374]
[1739963221289,0.00338406,96519.0,96518.0,0.0159374]
[1739963221612,0.00338406,96519.0,96518.0,0.00815284]
[1739963222636,0.00038406,96519.0,96518.0,0.00815284]
[1739963223070,0.00038406,96519.0,96518.0,0.01015284]
[1739963225446,0.00038406,96519.0,96518.0,0.08625284]
[1739963230248,0.00038406,96519.0,96518.0,0.09373284]
[1739963235739,0.06911358,96540.0,96518.0,0.09373284]
[1739963236853,0.08965018,96540.0,96518.0,0.09173284]
[1739963237055,0.15,96539.0,96518.0,0.09273284]
[1739963238030,0.15,96539.0,96518.0,0.09173284]
[1739963238373,0.007,96539.0,96518.0,0.09273284]
[1739963238840,0.012,96539.0,96518.0,0.09273284]
[1739963239239,0.007,96539.0,96518.0,0.09273284]
[1739963239956,0.012,96539.0,96518.0,0.09273284]
[1739963240159,0.005,96539.0,96518.0,0.09173284]
[1739963240336,0.007,96539.0,96518.0,0.09273284]
[1739963240552,0.012,96539.0,96518.0,0.09273284]
[1739963240895,0.005,96539.0,96518.0,0.09173284]
[1739963241272,0.012,96539.0,96518.0,0.09273284]
[1739963241830,0.0205366,96540.0,96518.0,0.09173284]
[1739963242001,0.004,96539.0,96518.0,0.09173284]
[1739963242160,0.006,96539.0,96518.0,0.09173284]
[1739963243392,0.002,96539.0,96518.0,0.09173284]
[1739963244516,0.006,96539.0,96518.0,0.09173284]
[1739963245330,0.02039715,96532.0,96518.0,0.09173284]
[1739963246218,0.02039715,96532.0,96518.0,0.08425284]
[1739963246378,0.02039715,96532.0,96519.0,0.00748]
[1739963246763,0.02239715,96532.0,96520.0,0.00815175]
[1739963247406,0.02039715,96532.0,96520.0,0.00815175]
[1739963247734,0.02239715,96532.0,96520.0,0.00815175]
[1739963248072,0.02039715,96532.0,96520.0,0.00815175]
[1739963248478,0.02239715,96532.0,96520.0,0.00815175]
[1739963250940,0.06911358,96530.0,96520.0,0.00815175]
[1739963252427,0.06911358,96530.0,96520.0,0.00915175]
[1739963252995,0.07011358,96530.0,96520.0,0.00915175]
[1739963253654,0.001,96530.0,96520.0,0.00915175]
[1739963254812,0.001,96530.0,96521.0,0.0769]
[1739963255137,0.001,96530.0,96522.0,0.00815065]
[1739963255893,0.02039715,96532.0,96522.0,0.00815065]
[1739963256235,0.001,96530.0,96522.0,0.00815065]
[1739963256639,0.0004254,96532.0,96522.0,0.00815065]
[1739963257021,0.0024254,96532.0,96522.0,0.00815065]
[1739963257683,0.0024254,96532.0,96522.0,0.00915065]
[1739963258270,0.0024254,96532.0,96522.0,0.00815065]
[1739963259146,0.0024254,96532.0,96523.0,0.082]
[1739963259352,0.0024254,96532.0,96524.0,0.00814956]
[1739963259923,0.0004254,96532.0,96524.0,0.00814956]
[1739963260443,0.0024254,96532.0,96524.0,0.00814956]
[1739963260786,0.0004254,96532.0,96524.0,0.00814956]
[1739963261126,0.0024254,96532.0,96524.0,0.00814956]
[1739963262663,0.0024254,96532.0,96525.0,0.0456]
[1739963263059,0.0024254,96532.0,96526.0,0.00814847]
[1739963263331,0.0024254,96532.0,96527.0,0.0766]
[1739963263537,0.0004254,96532.0,96527.0,0.0766]
[1739963263673,0.0024254,96532.0,96528.0,0.00814738]
[1739963264334,0.0004254,96532.0,96528.0,0.00814738]
[1739963265768,0.0024254,96532.0,96528.0,0.00814738]
[1739963266212,0.0004254,96532.0,96528.0,0.00814738]
[1739963266842,0.0024254,96532.0,96528.0,0.00814738]
[1739963280109,0.0024254,96532.0,96528.0,0.00899818]
[1739963284316,0.15,96531.0,96528.0,0.00899818]
[1739963284440,0.10250365,96531.0,96529.0,0.00748]
[1739963284650,0.10250365,96531.0,96530.0,0.00748]
[1739963284854,0.10250365,96531.0,96530.0,0.01716144]
[1739963285061,0.10250365,96531.0,96530.0,0.00748]
[1739963285309,0.10250365,96531.0,96530.0,0.01716144]
[1739963285521,0.10250365,96531.0,96530.0,0.00748]
[1739963285691,0.10250365,96531.0,96530.0,0.01716144]
[1739963285896,0.10750365,96531.0,96530.0,0.00748]
[1739963286107,0.10250365,96531.0,96530.0,0.00748]
[1739963286307,0.10750365,96531.0,96530.0,0.00748]
[1739963286508,0.11050365,96531.0,96530.0,0.00748]
[1739963286744,0.11050365,96531.0,96530.0,0.01716144]
[1739963286950,0.11050365,96531.0,96530.0,0.00748]
[1739963287157,0.11050365,96531.0,96530.0,0.01716144]
[1739963287311,0.11050365,96531.0,96530.0,0.00748]
[1739963287516,0.10550365,96531.0,96530.0,0.00748]
[1739963287923,0.11050365,96531.0,96530.0,0.01716144]
[1739963290418,0.10750365,96531.0,96530.0,0.01716144]
[1739963290621,0.11050365,96531.0,96530.0,0.01716144]
[1739963291367,0.10550365,96531.0,96530.0,0.01716144]
[1739963291519,0.11050365,96531.0,96530.0,0.01716144]
[1739963292960,0.008,96531.0,96530.0,0.01716144]
[1739963302518,0.008,96531.0,96530.0,0.00968144]
[1739963302761,0.26050365,96531.0,96530.0,0.01716144]
[1739963302980,0.26050365,96531.0,96530.0,0.00748]
[1739963303179,0.26050365,96531.0,96530.0,0.01716144]
[1739963303386,0.15,96530.0,96528.0,0.0008508]
[1739963303566,0.25250365,96529.0,96528.0,0.0008508]
[1739963303701,0.25250365,96529.0,96528.0,0.0083308]
[1739963304893,0.25850365,96529.0,96528.0,0.0083308]
[1739963305074,0.25850365,96529.0,96528.0,0.0008508]
[1739963305307,0.25850365,96529.0,96528.0,0.0083308]
[1739963309748,0.25450365,96529.0,96528.0,0.0083308]
[1739963310522,0.25850365,96529.0,96528.0,0.0083308]
[1739963311289,0.25650365,96529.0,96528.0,0.0083308]
[1739963311472,0.25850365,96529.0,96528.0,0.0083308]
[1739963313763,0.25850365,96529.0,96528.0,0.0561308]
[1739963313973,0.156,96529.0,96528.0,0.0561308]
[1739963314235,0.152,96529.0,96528.0,0.0561308]
[1739963314448,0.15,96529.0,96528.0,0.0561308]
[1739963314723,0.154,96529.0,96528.0,0.0561308]
[1739963314929,0.156,96529.0,96528.0,0.0561308]
[1739963315913,0.156,96529.0,96528.0,0.0486508]
[1739963316093,0.25850365,96529.0,96528.0,0.0083308]
[1739963317079,0.25450365,96529.0,96528.0,0.0083308]
[1739963317416,0.25650365,96529.0,96528.0,0.0083308]
[1739963317623,0.25850365,96529.0,96528.0,0.0083308]
[1739963324120,0.25450365,96529.0,96528.0,0.0083308]
[1739963324324,0.25850365,96529.0,96528.0,0.0083308]
[1739963324959,0.25450365,96529.0,96528.0,0.0083308]
[1739963325472,0.25250365,96529.0,96528.0,0.0083308]
[1739963325841,0.25450365,96529.0,96528.0,0.0083308]
[1739963326021,0.25250365,96529.0,96528.0,0.0083308]
[1739963326360,0.25750365,96529.0,96528.0,0.0083308]
[1739963335625,0.25550365,96529.0,96528.0,0.0083308]
[1739963335824,0.25250365,96529.0,96528.0,0.0083308]
[1739963336187,0.25550365,96529.0,96528.0,0.0083308]
[1739963336638,0.25750365,96529.0,96528.0,0.0083308]
[1739963337481,0.25750365,96529.0,96528.0,0.0853308]
[1739963337695,0.25750365,96529.0,96528.0,0.0950261]
[1739963338853,0.25250365,96529.0,96528.0,0.0950261]
[1739963339093,0.25450365,96529.0,96528.0,0.0950261]
[1739963339386,0.25750365,96529.0,96528.0,0.0950261]
[1739963340715,0.25750365,96529.0,96528.0,0.1440261]
[1739963342425,0.25250365,96529.0,96528.0,0.1440261]
[1739963342800,0.25750365,96529.0,96528.0,0.1440261]
[1739963345633,0.25550365,96529.0,96528.0,0.1440261]
[1739963345843,0.25750365,96529.0,96528.0,0.1440261]
[1739963346249,0.25450365,96529.0,96528.0,0.1440261]
[1739963346737,0.25750365,96529.0,96528.0,0.1440261]
[1739963348556,0.155,96529.0,96528.0,0.1440261]
[1739963348959,0.155,96529.0,96528.0,0.1365461]
[1739963349093,0.155,96529.0,96528.0,0.1440261]
[1739963350310,0.152,96529.0,96528.0,0.1440261]
[1739963350692,0.155,96529.0,96528.0,0.1440261]
[1739963350892,0.153,96529.0,96528.0,0.1440261]
[1739963351260,0.155,96529.0,96528.0,0.1440261]
[1739963354449,0.153,96529.0,96528.0,0.1440261]
[1739963354864,0.155,96529.0,96528.0,0.1440261]
[1739963355064,0.152,96529.0,96528.0,0.1440261]
[1739963355261,0.157,96529.0,96528.0,0.1440261]
[1739963355647,0.154,96529.0,96528.0,0.1440261]
[1739963356068,0.157,96529.0,96528.0,0.1440261]
[1739963361623,0.15,96529.0,96528.0,0.1440261]
[1739963362002,0.155,96529.0,96528.0,0.1440261]
[1739963362299,0.153,96529.0,96528.0,0.1440261]
[1739963362851,0.15,96529.0,96528.0,0.1440261]
[1739963363270,0.153,96529.0,96528.0,0.1440261]
[1739963363462,0.155,96529.0,96528.0,0.1440261]
[1739963365685,0.152,96529.0,96528.0,0.1440261]
[1739963366069,0.155,96529.0,96528.0,0.1440261]
[1739963366565,0.153,96529.0,96528.0,0.1440261]
[1739963366896,0.155,96529.0,96528.0,0.1440261]
[1739963369543,0.153,96529.0,96528.0,0.1440261]
[1739963369929,0.155,96529.0,96528.0,0.1440261]
[1739963370130,0.152,96529.0,96528.0,0.1440261]
[1739963371986,0.155,96529.0,96528.0,0.1440261]
[1739963374121,0.153,96529.0,96528.0,0.1440261]
[1739963374678,0.155,96529.0,96528.0,0.1440261]
[1739963375008,0.152,96529.0,96528.0,0.1440261]
[1739963375203,0.155,96529.0,96528.0,0.1440261]
[1739963387925,0.152,96529.0,96528.0,0.1440261]
[1739963388325,0.155,96529.0,96528.0,0.1440261]
[1739963389160,0.153,96529.0,96528.0,0.1440261]
[1739963389583,0.155,96529.0,96528.0,0.1440261]
[1739963392754,0.15,96529.0,96528.0,0.1440261]